bitfinex/quotes_BTCUSD_20250313
["timestamp","ask_amount","ask_price","bid_price","bid_amount"]
[1741844168383,0.011982,83458.0,83457.0,0.00270003]
[1741844168384,0.04116243,83458.0,83457.0,0.00270003]
[1741844168584,0.04116243,83458.0,83457.0,0.01468203]
[1741844168804,0.04416243,83458.0,83457.0,0.00270003]
[1741844169208,0.04116243,83458.0,83457.0,0.00270003]
[1741844169652,0.29499748,83458.0,83457.0,0.00270003]
[1741844169826,0.05535648,83458.0,83457.0,0.00270003]
[1741844170032,0.05835648,83458.0,83457.0,0.00270003]
[1741844170227,0.05535648,83458.0,83457.0,0.00270003]
[1741844170430,0.05535648,83458.0,83457.0,0.01468203]
[1741844170636,0.05835648,83458.0,83457.0,0.02922288]
[1741844170839,0.05835648,83458.0,83457.0,0.04100622]
[1741844170840,0.05535648,83458.0,83457.0,0.04100622]
[1741844171240,0.05735648,83458.0,83457.0,0.04100622]
[1741844171675,0.05535648,83458.0,83457.0,0.04100622]
[1741844171874,0.03657887,83458.0,83457.0,0.04100622]
[1741844172100,0.02538482,83458.0,83457.0,0.11640622]
[1741844172298,0.02538482,83458.0,83457.0,0.11760428]
[1741844172914,0.02238482,83458.0,83457.0,0.11760428]
[1741844173077,0.02238482,83458.0,83457.0,0.87724622]
[1741844173280,0.011981,83463.0,83457.0,0.86270537]
[1741844173483,0.011981,83462.0,83458.0,0.01454085]
[1741844173940,0.251612,83462.0,83459.0,0.00161535]
[1741844174106,0.011981,83460.0,83459.0,0.00253201]
[1741844174284,0.011981,83460.0,83459.0,0.00153201]
[1741844174503,0.011981,83460.0,83459.0,0.00244867]
[1741844174724,0.03433503,83460.0,83459.0,0.00244867]
[1741844175073,0.011982,83458.0,83457.0,0.76111941]
[1741844175672,0.02315918,83458.0,83457.0,0.76111941]
[1741844175851,0.04551321,83458.0,83457.0,0.76111941]
[1741844176463,0.04551321,83458.0,83457.0,0.00027941]
[1741844176987,0.04851321,83458.0,83457.0,0.00027941]
[1741844178354,0.03853121,83458.0,83457.0,0.00027941]
[1741844179055,0.03853121,83458.0,83457.0,0.00501447]
[1741844179257,0.03853121,83458.0,83457.0,0.00027941]
[1741844179559,0.03853121,83458.0,83457.0,0.00501447]
[1741844179769,0.03853121,83458.0,83457.0,0.00027941]
[1741844179973,0.02815918,83458.0,83457.0,0.00501447]
[1741844180230,0.02815918,83458.0,83457.0,0.00027941]
[1741844183701,0.016982,83458.0,83457.0,0.00027941]
[1741844198150,0.095182,83458.0,83457.0,0.00027941]
[1741844198349,0.016982,83458.0,83457.0,0.00027941]
[1741844199985,0.095182,83458.0,83457.0,0.00027941]
[1741844200602,0.093182,83458.0,83457.0,0.00027941]
[1741844201023,0.097182,83458.0,83457.0,0.00027941]
[1741844201765,0.499082,83458.0,83457.0,0.00027941]
[1741844201921,0.513082,83458.0,83457.0,0.00027941]
[1741844202324,0.513082,83458.0,83457.0,4.1e-07]
[1741844202530,0.561782,83458.0,83457.0,4.1e-07]
[1741844203553,0.554782,83458.0,83457.0,4.1e-07]
[1741844203753,0.251682,83438.0,83437.0,0.00905931]
[1741844203952,0.251682,83438.0,83437.0,0.00947582]
[1741844204155,0.27405257,83438.0,83437.0,0.00947582]
[1741844204593,0.30401836,83438.0,83437.0,0.00947582]
[1741844204964,0.30501836,83438.0,83437.0,0.00947582]
[1741844205169,0.30701836,83438.0,83437.0,0.00947582]
[1741844206721,0.28464779,83438.0,83437.0,0.00947582]
[1741844208989,0.30699885,83438.0,83437.0,0.00947582]
[1741844209830,0.30699885,83438.0,83437.0,0.00964552]
[1741844210037,0.30733825,83438.0,83437.0,0.00964552]
[1741844211719,0.28498719,83438.0,83437.0,0.00964552]
[1741844214520,0.36678719,83438.0,83437.0,0.00964552]
[1741844215440,0.36478719,83438.0,83437.0,0.00964552]
[1741844215652,0.37178719,83438.0,83437.0,0.00964552]
[1741844215871,0.3941153,83438.0,83437.0,0.00964552]
[1741844216069,0.3861153,83438.0,83437.0,0.00964552]
[1741844216432,0.3921153,83438.0,83437.0,0.00964552]
[1741844216649,0.5381153,83438.0,83437.0,0.00964552]
[1741844216849,0.3173153,83438.0,83437.0,0.00964552]
[1741844217047,0.3103153,83438.0,83437.0,0.00964552]
[1741844217408,0.3163153,83438.0,83437.0,0.00964552]
[1741844219686,0.0766173,83438.0,83437.0,0.00964552]
[1741844219862,0.0646333,83438.0,83437.0,0.00964552]
[1741844220109,0.0766173,83438.0,83437.0,0.0168825]
[1741844220320,0.0646333,83438.0,83437.0,0.0168825]
[1741844220542,0.0646333,83438.0,83437.0,0.02163052]
[1741844220749,0.03112517,83438.0,83437.0,0.0288675]
[1741844220952,0.03112517,83438.0,83437.0,0.0774675]
[1741844221829,0.02512517,83438.0,83437.0,0.0654825]
[1741844222036,0.02912517,83438.0,83437.0,0.09200835]
[1741844222411,0.02312517,83438.0,83437.0,0.09200835]
[1741844222617,0.02312517,83438.0,83437.0,0.09320678]
[1741844222790,0.02712517,83438.0,83437.0,0.09320678]
[1741844222997,0.02712517,83438.0,83437.0,0.09200835]
[1741844223205,0.02312517,83438.0,83437.0,0.09200835]
[1741844223369,0.01912517,83438.0,83437.0,0.17350835]
[1741844223729,0.01350911,83438.0,83437.0,0.17350835]
[1741844224066,0.01150911,83438.0,83437.0,0.17350835]
[1741844224842,0.0003394,83438.0,83437.0,0.17350835]
[1741844224991,0.0033394,83438.0,83437.0,0.17350835]
[1741844225193,0.0003394,83438.0,83437.0,0.17350835]
[1741844229022,0.0003394,83438.0,83437.0,0.1589675]
[1741844229211,0.0003394,83438.0,83437.0,0.2990875]
[1741844229339,0.0003394,83438.0,83437.0,0.31362835]
[1741844231359,0.0003394,83438.0,83437.0,0.31346835]
[1741844234401,0.0003394,83438.0,83437.0,0.17350835]
[1741844234588,0.0003394,83438.0,83437.0,0.30128335]
[1741844234783,0.0003394,83438.0,83437.0,0.23176835]
[1741844238718,0.0003394,83438.0,83437.0,0.17118335]
[1741844238943,0.0003394,83438.0,83437.0,0.42286935]
[1741844239225,0.0003394,83438.0,83437.0,0.17090335]
[1741844239608,0.0003394,83438.0,83437.0,0.42258935]
[1741844239831,0.0944234,83438.0,83437.0,0.0168825]
[1741844240237,0.16060564,83438.0,83437.0,0.0168825]
[1741844240442,0.19409893,83438.0,83437.0,0.00964552]
[1741844241076,0.20635641,83438.0,83437.0,0.00964552]
[1741844241514,0.20735641,83438.0,83437.0,0.00964552]
[1741844241926,0.20735641,83438.0,83437.0,5.2e-07]
[1741844242310,0.44111585,83438.0,83437.0,5.2e-07]
[1741844242530,0.44111585,83438.0,83431.0,0.0008]
[1741844242531,0.377901,83432.0,83431.0,2e-08]
[1741844243077,0.40023059,83432.0,83431.0,2e-08]
[1741844243283,0.251779,83406.0,83395.0,0.0001695]
[1741844243489,0.332979,83406.0,83395.0,0.0001695]
[1741844244003,0.35176884,83406.0,83395.0,0.0001695]
[1741844244385,0.35176884,83406.0,83405.0,5e-07]
[1741844244386,0.40913409,83406.0,83405.0,5e-07]
[1741844244592,0.37451305,83406.0,83405.0,5e-07]
[1741844244849,0.38567675,83406.0,83405.0,5e-07]
[1741844245008,0.39048575,83406.0,83405.0,5e-07]
[1741844245345,0.119989,83405.0,83404.0,1e-07]
[1741844246234,0.326801,83399.0,83398.0,1e-07]
[1741844246392,0.468441,83399.0,83398.0,1e-07]
[1741844246594,0.468721,83399.0,83398.0,1e-07]
[1741844247078,0.49105059,83399.0,83398.0,1e-07]
[1741844247231,0.49705059,83399.0,83398.0,1e-07]
[1741844247658,0.48583655,83399.0,83398.0,1e-07]
[1741844248135,0.5140493,83399.0,83398.0,1e-07]
[1741844250581,0.50293375,83399.0,83398.0,1e-07]
[1741844252391,0.28601375,83399.0,83398.0,1e-07]
[1741844252949,0.03421275,83399.0,83398.0,1e-07]
[1741844253644,0.03421275,83399.0,83398.0,0.00881005]
[1741844253848,0.03421275,83399.0,83398.0,1e-07]
[1741844254053,0.02221275,83399.0,83398.0,0.00881005]
[1741844254202,0.251801,83399.0,83398.0,0.00881005]
[1741844254600,0.263801,83399.0,83398.0,0.00881005]
[1741844254778,0.012,83399.0,83398.0,0.00881005]
[1741844254918,0.015,83399.0,83398.0,1e-07]
[1741844255123,0.015,83399.0,83398.0,0.00881005]
[1741844255335,0.006,83399.0,83398.0,0.26061305]
[1741844255693,0.007,83399.0,83398.0,0.02080005]
[1741844255916,0.01978881,83399.0,83398.0,0.02080005]
[1741844256329,0.02078881,83399.0,83398.0,0.02080005]
[1741844256535,0.02078881,83399.0,83398.0,0.02096955]
[1741844256743,0.01978881,83399.0,83398.0,0.0355104]
[1741844256943,0.02012781,83399.0,83398.0,0.0355104]
[1741844257873,0.01912781,83399.0,83398.0,0.0355104]
[1741844258288,0.01912781,83399.0,83398.0,0.0235204]
[1741844258494,0.27092881,83399.0,83398.0,0.00897955]
[1741844258694,0.27092881,83399.0,83398.0,0.00407496]
[1741844258898,0.27092881,83399.0,83398.0,0.0001696]
[1741844259047,0.27092881,83399.0,83398.0,0.00897955]
[1741844259249,0.27092881,83399.0,83398.0,0.0001696]
[1741844259449,0.27092881,83399.0,83398.0,0.00407496]
[1741844259686,0.27092881,83399.0,83398.0,0.00897955]
[1741844260062,0.27092881,83399.0,83398.0,0.0001696]
[1741844260943,0.27092881,83399.0,83398.0,0.0011696]
[1741844261731,0.27492881,83399.0,83398.0,0.0011696]
[1741844262300,0.27492881,83399.0,83398.0,0.0001696]
[1741844262671,0.27792881,83399.0,83398.0,0.0001696]
[1741844263273,0.02612781,83399.0,83398.0,0.0001696]
[1741844263494,0.03811781,83399.0,83398.0,0.0001696]
[1741844264243,0.03111781,83399.0,83398.0,0.0001696]
[1741844264827,0.03511781,83399.0,83398.0,0.0001696]
[1741844265026,0.03111781,83399.0,83398.0,0.0001696]
[1741844265415,0.03411781,83399.0,83398.0,0.0001696]
[1741844265834,0.03711781,83399.0,83398.0,0.0001696]
[1741844266288,0.03411781,83399.0,83398.0,0.0001696]
[1741844266604,0.03911781,83399.0,83398.0,0.0001696]
[1741844266811,0.03611781,83399.0,83398.0,0.0001696]
[1741844267167,0.04111781,83399.0,83398.0,0.0001696]
[1741844268316,0.02912781,83399.0,83398.0,0.0001696]
[1741844268751,0.28092881,83399.0,83398.0,0.00897955]
[1741844268877,0.28092881,83399.0,83398.0,0.0001696]
[1741844269490,0.28092881,83399.0,83373.0,6e-07]
[1741844269491,0.011994,83374.0,83373.0,6e-07]
[1741844269695,0.239868,83379.0,83373.0,6e-07]
[1741844269930,0.011992,83387.0,83377.0,0.011993]
[1741844270128,0.251819,83393.0,83385.0,0.011992]
[1741844270332,0.010339,83399.0,83384.0,0.239852]
[1741844270480,0.005339,83399.0,83395.0,0.011991]
[1741844270692,0.005339,83399.0,83396.0,0.00523674]
[1741844270916,0.24556662,83399.0,83393.0,0.02653185]
[1741844271090,0.01774362,83399.0,83397.0,0.0052364]
[1741844271314,0.01274362,83399.0,83393.0,0.01454085]
[1741844271556,0.01199,83396.0,83390.0,0.0246358]
[1741844271758,0.251825,83391.0,83390.0,0.0216358]
[1741844271964,0.011993,83380.0,83377.0,0.77606085]
[1741844272188,0.011992,83382.0,83380.0,0.02371989]
[1741844272362,0.011992,83382.0,83378.0,0.1450243]
[1741844272536,0.011993,83380.0,83378.0,0.14228]
[1741844272988,0.011993,83380.0,83377.0,0.76152]
[1741844272989,0.011993,83378.0,83377.0,0.76152]
[1741844273770,0.251876,83374.0,83373.0,6e-07]
[1741844274734,0.251867,83377.0,83373.0,6e-07]
[1741844274925,0.02233039,83378.0,83375.0,0.011994]
[1741844275157,0.02233039,83376.0,83375.0,0.011994]
[1741844275365,0.03432339,83376.0,83373.0,6e-07]
[1741844275893,0.02233039,83376.0,83373.0,6e-07]
[1741844276295,0.02233039,83375.0,83373.0,6e-07]
[1741844276498,0.001,83374.0,83373.0,6e-07]
[1741844276854,0.002,83374.0,83373.0,6e-07]
[1741844277176,0.03078881,83374.0,83373.0,0.01454145]
[1741844277495,0.0531192,83374.0,83373.0,6e-07]
[1741844278470,0.0531192,83374.0,83373.0,0.0052453]
[1741844279222,0.0531192,83374.0,83373.0,6e-07]
[1741844279374,0.06428363,83374.0,83373.0,6e-07]
[1741844280846,0.0601192,83374.0,83373.0,6e-07]
[1741844281468,0.0531192,83374.0,83373.0,6e-07]
[1741844281674,0.0591192,83374.0,83373.0,6e-07]
[1741844281892,0.0641192,83374.0,83373.0,6e-07]
[1741844282312,0.262876,83374.0,83373.0,6e-07]
[1741844282695,0.022994,83374.0,83373.0,6e-07]
[1741844283337,0.017994,83374.0,83373.0,6e-07]
[1741844283536,0.022994,83374.0,83373.0,6e-07]
[1741844284207,0.016994,83374.0,83373.0,6e-07]
[1741844284599,0.021994,83374.0,83373.0,6e-07]
[1741844285064,0.04431652,83374.0,83373.0,6e-07]
[1741844285264,0.17271652,83374.0,83373.0,6e-07]
[1741844285966,0.18387197,83374.0,83373.0,6e-07]
[1741844286201,0.251919,83360.0,83359.0,8e-05]
[1741844286886,0.27071866,83360.0,83359.0,8e-05]
[1741844287091,0.29304118,83360.0,83359.0,8e-05]
[1741844287522,0.29345554,83360.0,83359.0,8e-05]
[1741844287930,0.29645554,83360.0,83359.0,8e-05]
[1741844288353,0.29945554,83360.0,83359.0,8e-05]
[1741844289656,0.31060076,83360.0,83359.0,8e-05]
[1741844291025,0.04753654,83360.0,83359.0,8e-05]
[1741844291240,0.04753654,83360.0,83359.0,0.252002]
[1741844291392,0.04753654,83360.0,83359.0,8e-05]
[1741844291598,0.04753654,83360.0,83359.0,0.00532955]
[1741844291841,0.04753654,83360.0,83359.0,8e-05]
[1741844292015,0.04753654,83360.0,83359.0,0.2717924]
[1741844292016,0.04453654,83360.0,83359.0,0.2717924]
[1741844292237,0.02221402,83360.0,83359.0,0.02661685]
[1741844292475,0.02521402,83360.0,83359.0,0.0198704]
[1741844292653,0.03721002,83360.0,83359.0,0.02004]
[1741844293073,0.03721002,83360.0,83359.0,0.00549915]
[1741844293290,0.03721002,83360.0,83359.0,0.0002496]
[1741844293521,0.03421002,83360.0,83359.0,0.0002496]
[1741844293724,0.03121002,83360.0,83359.0,0.0002496]
[1741844294924,0.01241036,83360.0,83359.0,0.0002496]
[1741844295736,0.01441036,83360.0,83359.0,0.0002496]
[1741844295933,0.00241436,83360.0,83359.0,0.0002496]
[1741844296339,0.01441036,83360.0,83359.0,0.00549915]
[1741844296534,0.25433336,83360.0,83359.0,0.00549915]
[1741844296741,0.25433336,83360.0,83359.0,0.0002496]
[1741844296942,0.00241436,83360.0,83359.0,0.0002496]
[1741844297132,0.01441036,83360.0,83359.0,0.0002496]
[1741844297331,0.00541436,83360.0,83359.0,0.0002496]
[1741844297561,0.00041436,83360.0,83359.0,0.00549915]
[1741844297893,0.02321053,83360.0,83359.0,0.01749515]
[1741844298095,0.02321053,83360.0,83359.0,0.00549915]
[1741844298298,0.01921053,83360.0,83359.0,0.00549915]
[1741844298823,0.01921053,83360.0,83359.0,0.271962]
[1741844300354,0.01921053,83360.0,83359.0,0.272962]
[1741844300915,0.03120653,83360.0,83359.0,0.15021915]
[1741844301390,0.03120653,83360.0,83359.0,0.00649915]
[1741844301842,0.03120653,83360.0,83359.0,0.0012496]
[1741844303072,0.011996,83355.0,83353.0,0.0001695]
[1741844303653,0.011997,83354.0,83353.0,3e-07]
[1741844305405,0.011997,83352.0,83351.0,3e-07]
[1741844306723,0.03079546,83352.0,83351.0,3e-07]
[1741844309834,0.03179546,83352.0,83351.0,3e-07]
[1741844310412,0.03879546,83352.0,83351.0,3e-07]
[1741844310635,0.03779546,83352.0,83351.0,3e-07]
[1741844310839,0.04479546,83352.0,83351.0,3e-07]
[1741844311243,0.03279846,83352.0,83351.0,3e-07]
[1741844311654,0.04479546,83352.0,83351.0,0.00525262]
[1741844311991,0.03279846,83352.0,83351.0,0.0119973]
[1741844312129,0.03279846,83352.0,83351.0,0.2519463]
[1741844312312,0.03279846,83352.0,83351.0,0.25719862]
[1741844313529,0.02579846,83352.0,83351.0,0.25719862]
[1741844313734,0.01879846,83352.0,83351.0,0.00525262]
[1741844314738,0.01879846,83352.0,83351.0,0.01724962]
[1741844315582,0.00041436,83360.0,83352.0,0.011997]
[1741844315823,0.00041436,83360.0,83355.0,0.011996]
[1741844316009,0.00041436,83360.0,83359.0,0.011996]
[1741844316216,0.00041436,83360.0,83359.0,0.251922]
[1741844316449,0.00041436,83360.0,83359.0,0.25717155]
[1741844316845,0.00241436,83360.0,83359.0,0.25717155]
[1741844317255,0.00541436,83360.0,83359.0,0.25717155]
[1741844317464,0.00541436,83360.0,83359.0,0.2717124]
[1741844317465,0.00341436,83360.0,83359.0,0.2717124]
[1741844317818,0.00541436,83360.0,83359.0,0.2717124]
[1741844318175,0.00541436,83360.0,83359.0,0.0197904]
[1741844318495,0.00575356,83360.0,83359.0,0.0197904]
[1741844319105,0.00275356,83360.0,83359.0,0.0317864]
[1741844319307,0.00075356,83360.0,83359.0,0.0317864]
[1741844320108,0.00075356,83360.0,83359.0,0.0327864]
[1741844320461,0.00075356,83360.0,83359.0,0.1583864]
[1741844320661,0.00075356,83360.0,83359.0,0.27832859]
[1741844320867,0.00175356,83360.0,83359.0,0.27932859]
[1741844321068,0.00175356,83360.0,83359.0,0.27832859]
[1741844321247,0.00075356,83360.0,83359.0,0.27832859]
[1741844321997,0.00075356,83360.0,83359.0,1.77832859]
[1741844322547,0.00175356,83360.0,83359.0,1.77932859]
[1741844322864,0.00275356,83360.0,83359.0,1.77932859]
[1741844323263,0.00275356,83360.0,83359.0,0.06614555]
[1741844323588,0.00275356,83360.0,83359.0,0.00624955]
[1741844324068,0.00275356,83360.0,83359.0,0.0207904]
[1741844324246,0.00275356,83360.0,83359.0,0.00624955]
[1741844324590,0.00175356,83360.0,83359.0,0.00524955]
[1741844324794,0.00075356,83360.0,83359.0,0.001]
[1741844324971,0.00075356,83360.0,83359.0,0.0327864]
[1741844326183,0.00075356,83360.0,83359.0,0.1129864]
[1741844326515,0.00175356,83360.0,83359.0,0.1129864]
[1741844326713,0.00075356,83360.0,83359.0,0.1129864]
[1741844327477,0.00075356,83360.0,83359.0,0.23192859]
[1741844328029,0.00175356,83360.0,83359.0,0.30372859]
[1741844328609,0.00175356,83360.0,83359.0,1.80372859]
[1741844329375,0.00075356,83360.0,83359.0,1.80372859]
[1741844329576,0.00175356,83360.0,83359.0,1.80272859]
[1741844329774,0.00175356,83360.0,83359.0,1.94600859]
[1741844330024,0.00175356,83360.0,83359.0,1.95000859]
[1741844332232,0.00175356,83360.0,83359.0,1.94866716]
[1741844332593,5.6e-07,83360.0,83359.0,1.94866716]
[1741844332816,5.6e-07,83360.0,83359.0,1.95146614]
[1741844333615,0.0003392,83373.0,83372.0,0.011994]
[1741844333765,0.0003392,83373.0,83372.0,0.026734]
[1741844333976,0.0003392,83373.0,83372.0,0.02949557]
[1741844334183,0.0003392,83373.0,83372.0,1.67137557]
[1741844334388,0.0003392,83373.0,83372.0,1.67017642]
[1741844334627,0.0003392,83373.0,83372.0,1.66917642]
[1741844336272,0.0003392,83373.0,83372.0,1.69871617]
[1741844336630,0.0003392,83373.0,83372.0,0.19871617]
[1741844336830,0.0003392,83373.0,83372.0,0.19991533]
[1741844337338,0.0013392,83373.0,83372.0,0.20691533]
[1741844337904,0.0013392,83373.0,83372.0,0.06403533]
[1741844338104,0.0013392,83373.0,83372.0,0.20655533]
[1741844338363,0.0013392,83373.0,83372.0,0.20535617]
[1741844338557,0.0013392,83373.0,83372.0,1.70655534]
[1741844338745,0.0013392,83373.0,83372.0,1.70535617]
[1741844340017,0.0013392,83373.0,83372.0,1.91586198]
[1741844340432,2e-07,83373.0,83372.0,1.99026198]
[1741844341175,0.0003394,83373.0,83372.0,1.99026198]
[1741844341372,0.0003392,83373.0,83372.0,1.98326198]
[1741844341595,0.0003392,83373.0,83372.0,0.47726198]
[1741844341805,0.0013392,83373.0,83372.0,0.48426198]
[1741844342006,0.0013392,83373.0,83372.0,1.98426198]
[1741844342939,0.0023392,83373.0,83372.0,1.99126198]
[1741844343078,0.0023392,83373.0,83372.0,1.96626198]
[1741844343274,0.0023392,83373.0,83372.0,0.18925894]
[1741844343472,0.0023392,83373.0,83372.0,0.25155804]
[1741844343698,0.0023392,83373.0,83372.0,0.12229979]
[1741844343929,0.0023392,83373.0,83372.0,0.07409892]
[1741844344149,0.0023392,83373.0,83372.0,0.21661892]
[1741844345541,0.0023392,83373.0,83372.0,0.07409892]
[1741844345738,0.0023392,83373.0,83372.0,0.21657892]
[1741844346108,0.0023392,83373.0,83372.0,0.21537979]
[1741844346308,0.0023392,83373.0,83372.0,0.21821723]
[1741844346768,0.0023392,83373.0,83372.0,0.07585723]
[1741844346971,0.0023392,83373.0,83372.0,0.21817723]
[1741844347641,0.0013392,83373.0,83372.0,0.21117723]
[1741844347808,0.0003392,83373.0,83372.0,0.20417723]
[1741844348201,0.0003392,83373.0,83372.0,0.06185723]
[1741844348365,0.0003392,83373.0,83372.0,0.20925723]
[1741844348948,0.0003392,83373.0,83372.0,0.21225723]
[1741844349667,0.0927332,83373.0,83372.0,0.01371901]
[1741844349870,0.1382332,83373.0,83372.0,0.01371901]
[1741844350022,0.14503,83373.0,83372.0,0.008]
[1741844350231,0.09953,83373.0,83372.0,0.008]
[1741844350442,0.01913,83373.0,83372.0,0.03729642]
[1741844350641,0.01913,83373.0,83372.0,0.04025386]
[1741844350844,0.01913,83373.0,83372.0,0.03225386]
[1741844351214,0.02013,83373.0,83372.0,0.03225386]
[1741844351570,0.01913,83373.0,83372.0,0.02025986]
[1741844351965,0.02013,83373.0,83372.0,0.02025986]
[1741844352169,0.031124,83373.0,83372.0,0.02025986]
[1741844352476,0.01913,83373.0,83372.0,0.02025986]
[1741844352649,0.01913,83373.0,83372.0,0.01454085]
[1741844352880,0.01913,83373.0,83372.0,0.01730242]
[1741844353068,0.031124,83373.0,83372.0,0.02042946]
[1741844353237,0.031124,83373.0,83372.0,0.00588861]
[1741844353657,0.031124,83373.0,83372.0,0.0001696]
[1741844355085,0.031124,83373.0,83372.0,0.0121636]
[1741844355086,0.01913,83373.0,83372.0,0.0121636]
[1741844355420,0.01913,83373.0,83372.0,0.02946602]
[1741844355618,0.0003392,83373.0,83372.0,0.03362277]
[1741844356194,0.0003392,83373.0,83372.0,0.17614277]
[1741844356599,0.0003392,83373.0,83372.0,0.03362277]
[1741844356812,0.0003392,83373.0,83372.0,0.17614277]
[1741844357143,0.0003392,83373.0,83372.0,0.17610277]
[1741844357724,0.0003392,83373.0,83372.0,0.17606277]
[1741844358329,0.0003392,83373.0,83372.0,0.17486346]
[1741844358648,0.0003392,83373.0,83372.0,1.67486346]
[1741844359358,0.0003392,83373.0,83372.0,0.16286946]
[1741844359536,0.0123332,83373.0,83372.0,0.16286946]
[1741844360074,0.0123332,83373.0,83372.0,0.02042946]
[1741844360204,0.0003392,83373.0,83372.0,0.02042946]
[1741844360404,0.0003392,83373.0,83372.0,0.01471045]
[1741844360652,0.0003392,83373.0,83372.0,0.01747202]
[1741844360805,0.0003392,83373.0,83372.0,0.02042946]
[1741844361236,0.0003392,83373.0,83372.0,0.26031746]
[1741844361435,0.0003392,83373.0,83372.0,0.27231146]
[1741844361630,0.0003392,83373.0,83372.0,0.02042946]
[1741844361888,0.0003392,83373.0,83372.0,0.03242346]
[1741844362095,0.0003392,83373.0,83372.0,0.02042946]
[1741844362863,0.0123332,83373.0,83372.0,0.02042946]
[1741844363727,0.0003392,83373.0,83372.0,0.02042946]
[1741844365033,0.0123332,83373.0,83372.0,0.02042946]
[1741844365805,0.0123332,83373.0,83372.0,0.01471045]
[1741844366034,0.0123332,83373.0,83372.0,0.0001696]
[1741844366231,0.1349332,83373.0,83372.0,0.0001696]
[1741844368603,0.14702364,83373.0,83372.0,0.0001696]
[1741844369338,0.16581805,83373.0,83372.0,0.0001696]
[1741844369735,0.17281805,83373.0,83372.0,0.0001696]
[1741844375100,0.16981805,83373.0,83372.0,0.0001696]
[1741844375231,0.17581805,83373.0,83372.0,6e-07]
[1741844375432,0.17181805,83373.0,83372.0,6e-07]
[1741844375706,0.17181805,83373.0,83372.0,0.00017]
[1741844375885,0.17781805,83373.0,83372.0,0.00117]
[1741844380188,0.11952761,83373.0,83372.0,0.00117]
[1741844380555,0.1007332,83373.0,83372.0,0.00117]
[1741844380778,0.0243332,83373.0,83372.0,0.00117]
[1741844380964,0.0123392,83373.0,83372.0,0.00117]
[1741844381161,0.0123392,83373.0,83372.0,0.013164]
[1741844381298,0.0123392,83373.0,83372.0,0.01888301]
[1741844381711,0.0123392,83373.0,83372.0,0.00688901]
[1741844382155,0.0063392,83373.0,83372.0,0.00588901]
[1741844382375,0.0003392,83373.0,83372.0,0.00588841]
[1741844382580,0.0163332,83373.0,83372.0,0.00588841]
[1741844382903,0.0123332,83373.0,83372.0,0.0001694]
[1741844383106,0.0163332,83373.0,83372.0,0.0001694]
[1741844383346,0.0193332,83373.0,83372.0,0.00588841]
[1741844383521,0.0193332,83373.0,83372.0,0.00293097]
[1741844383522,0.0153332,83373.0,83372.0,0.00293097]
[1741844383723,0.0153332,83373.0,83372.0,0.00588841]
[1741844384061,0.0173332,83373.0,83372.0,0.00588841]
[1741844384447,0.0173332,83373.0,83372.0,0.00293097]
[1741844385057,0.0173332,83373.0,83372.0,0.00569254]
[1741844385614,0.0173332,83373.0,83372.0,0.00293097]
[1741844386036,0.0173332,83373.0,83372.0,0.00864998]
[1741844387056,0.0053392,83373.0,83372.0,0.00864998]
[1741844387241,0.0053392,83373.0,83372.0,0.02064398]
[1741844387475,0.02413188,83373.0,83372.0,0.03638418]
[1741844387631,0.02413188,83373.0,83372.0,0.03518483]
[1741844388452,0.02213188,83373.0,83372.0,0.03518483]
[1741844388738,0.02413188,83373.0,83372.0,0.03518483]
[1741844388934,0.02113188,83373.0,83372.0,0.03518483]
[1741844389181,0.01913188,83373.0,83372.0,0.03518483]
[1741844389495,0.02213188,83373.0,83372.0,0.03618483]
[1741844389694,0.01913188,83373.0,83372.0,0.03618483]
[1741844390000,0.01913188,83373.0,83372.0,0.02419083]
[1741844390151,0.03112588,83373.0,83372.0,0.00964998]
[1741844390562,0.03112588,83373.0,83372.0,0.00393097]
[1741844392250,0.03112588,83373.0,83372.0,0.00964998]
[1741844394712,0.03112588,83373.0,83372.0,0.00393097]
[1741844394933,0.03112588,83373.0,83372.0,0.00964998]
[1741844395463,0.03112588,83373.0,83372.0,0.00393097]
[1741844395871,0.03112588,83373.0,83372.0,0.00293097]
[1741844396277,0.03212588,83373.0,83372.0,0.00293097]
[1741844396699,0.0153332,83373.0,83372.0,0.00293097]
[1741844399655,0.03412683,83373.0,83372.0,0.00293097]
[1741844404230,0.08232683,83373.0,83372.0,0.00293097]
[1741844405587,0.1444332,83373.0,83372.0,0.00293097]
[1741844406485,0.1424332,83373.0,83372.0,0.00293097]
[1741844406677,0.1414332,83373.0,83372.0,0.00293097]
[1741844406816,0.1474332,83373.0,83372.0,0.00393097]
[1741844407267,0.0183332,83373.0,83372.0,0.00393097]
[1741844408071,0.0243332,83373.0,83372.0,0.00493097]
[1741844408418,0.17820452,83373.0,83359.0,0.00012515]
[1741844408606,0.0812,83339.0,83330.0,0.01230128]
[1741844408811,0.011999,83339.0,83332.0,0.012]
[1741844408968,0.011999,83339.0,83324.0,0.099283]
[1741844409148,0.011999,83335.0,83333.0,0.00675488]
[1741844409358,0.011998,83341.0,83325.0,0.0157408]
[1741844409359,0.011998,83341.0,83326.0,0.252022]
[1741844409575,0.011999,83338.0,83326.0,0.300822]
[1741844409785,0.012,83333.0,83327.0,0.00677424]
[1741844409983,0.012,83331.0,83327.0,0.00677424]
[1741844410740,0.012,83330.0,83327.0,0.00677424]
[1741844411030,0.012,83328.0,83327.0,0.00677424]
[1741844411551,0.012,83328.0,83327.0,0.02131509]
[1741844411753,0.03080133,83328.0,83327.0,0.00677424]
[1741844412107,0.03080133,83328.0,83325.0,0.14044]
[1741844412108,0.012001,83326.0,83325.0,0.14044]
[1741844412830,0.012001,83324.0,83323.0,0.03873598]
[1741844413195,0.012001,83325.0,83324.0,0.01454085]
[1741844413397,0.012001,83325.0,83323.0,0.00678715]
[1741844413398,0.012001,83324.0,83323.0,0.00678715]
[1741844413982,0.012001,83322.0,83321.0,0.0001695]
[1741844414687,0.012,83331.0,83321.0,0.0001695]
[1741844414893,0.012001,83326.0,83322.0,0.00679037]
[1741844415117,0.012,83331.0,83322.0,0.00679037]
[1741844415314,0.240025,83325.0,83322.0,0.00679037]
[1741844415820,0.252026,83325.0,83322.0,0.00679037]
[1741844416675,0.27082836,83325.0,83322.0,0.00679037]
[1741844417510,0.012001,83323.0,83322.0,0.00679037]
[1741844417710,0.252033,83322.0,83321.0,0.0001695]
[1741844421034,0.252033,83322.0,83321.0,0.0011695]
[1741844421615,0.27082836,83325.0,83321.0,0.0011695]
[1741844421616,0.01880236,83325.0,83321.0,0.0011695]
[1741844421818,0.012001,83322.0,83321.0,0.0011695]
[1741844422658,0.014001,83322.0,83321.0,0.0011695]
[1741844423219,0.014001,83322.0,83321.0,0.0001695]
[1741844423643,0.017001,83322.0,83321.0,0.0001695]
[1741844423957,0.012001,83322.0,83321.0,0.0001695]
[1741844424303,0.013001,83322.0,83321.0,0.0001695]
[1741844424516,0.095201,83322.0,83321.0,0.0001695]